fUSD/lending_fUSD_20250128
["ID","MTS","AMOUNT","RATE_DAILY","PERIOD"]
[350654991,1738033846242,-433701.3073416,0.000188,2]
[350654992,1738033846253,-1777.8985639,0.000188,2]
[350654993,1738033846264,-337207.33844717,0.000188,2]
[350654994,1738033846276,-2998.9324722,0.000188,2]
[350654995,1738033846288,-424.141221,0.000188,2]
[350654996,1738033846300,-571408.71274248,0.000188,2]
[350654997,1738033846312,-10634.5999995,0.000188,2]
[350654998,1738033846372,-60945.0,0.000188,2]
[350654999,1738033846383,-922195.6219621,0.000188,2]
[350655000,1738033846395,-385184.41546954,0.000188,2]
[350655001,1738033846406,-429.29582741,0.000188,2]
[350655002,1738033846425,-122829.95105862,0.000188,2]
[350655003,1738033846436,-5133.32045067,0.000188,2]
[350655004,1738033846482,-10575.5,0.000188,2]
[350655005,1738033846494,-527.077714,0.000188,2]
[350655006,1738033846537,-42275.62186679,0.000188,2]
[350655116,1738034374625,500.0,0.00021,120]
[350655117,1738034500004,165.77,0.00010137,2]
[350655162,1738034880677,528015.71749456,0.0001,2]
[350655191,1738035032334,-550.0,0.00013,2]
[350655193,1738035032344,-150.0,0.00014,2]
[350655195,1738035032354,-150.0,0.000143,2]
[350655197,1738035032363,-600.0,0.00015,2]
[350655198,1738035032372,-150.0,0.00015468,2]
[350655199,1738035032382,-700.18,0.00015839,2]
[350655200,1738035032391,-946.8175213,0.000165,2]
[350655201,1738035032444,-4645.1824787,0.000165,2]
[350655202,1738035032452,-650.0,0.00017,2]
[350655203,1738035032463,-1000.0,0.00017262,2]
[350655204,1738035032475,-200.0,0.0001727,2]
[350655205,1738035032485,-206.44,0.00017296,2]
[350655206,1738035032495,-200.0,0.0001736,2]
[350655207,1738035032504,-300.0,0.00017363,2]
[350655208,1738035032514,-2588.61,0.00017364,2]
[350655209,1738035032524,-250.0,0.00017401,2]
[350655210,1738035032533,-250.0,0.00017401,2]
[350655211,1738035032543,-172.41,0.00017406,2]
[350655212,1738035032552,-2041.98,0.0001749,2]
[350655213,1738035032562,-152.981,0.00017601,2]
[350655214,1738035032571,-172.0,0.00017601,2]
[350655215,1738035032581,-391.33,0.0001782,2]
[350655216,1738035032590,-635.17,0.00017839,2]
[350655217,1738035032599,-334.14,0.00017895,30]
[350655218,1738035032609,-1610.6706,0.000179,2]
[350655219,1738035032618,-803.9451,0.000179,2]
[350655220,1738035032627,-1144.0,0.000179,2]
[350655221,1738035032635,-174.53,0.00017912,2]
[350655222,1738035032644,-2000.0,0.00018082,2]
[350655223,1738035032654,-700.18,0.00018103,2]
[350655224,1738035032663,-150.0,0.00018239,2]
[350655225,1738035032672,-300.0,0.00018239,2]
[350655226,1738035032682,-500.0,0.0001838,2]
[350655227,1738035032691,-1132.95304557,0.00018424,2]
[350655228,1738035032700,-1110.75691623,0.00018424,2]
[350655229,1738035032709,-511.4,0.00018424,2]
[350655230,1738035032719,-1184.0,0.00018426,2]
[350655231,1738035032728,-500.0,0.0001848,2]
[350655232,1738035032737,-150.0,0.00018519,2]
[350655233,1738035032746,-150.0,0.00018546,2]
[350655246,1738035032916,-500.0,0.0001858,2]
[350655248,1738035032925,-7186.5359,0.000186,2]
[350655250,1738035032935,-500.0,0.0001865,2]
[350655252,1738035032944,-1749.277,0.0001865,2]
[350655254,1738035032953,-500.0,0.0001868,2]
[350655255,1738035032962,-7116.7038,0.00018689,2]
[350655256,1738035032972,-337.9571,0.00018689,2]
[350655257,1738035032981,-56677.8202,0.000187,2]
[350655258,1738035032990,-4037.1296,0.000187,2]
[350655259,1738035032999,-5927.5379,0.000187,2]
[350655260,1738035033008,-3878.3793,0.000187,2]
[350655261,1738035033017,-3987.5828,0.000187,2]
[350655262,1738035033026,-515.3685,0.000187,2]
[350655263,1738035033035,-1000.0,0.000187,2]
[350655265,1738035033043,-3082.8741,0.000187,2]
[350655267,1738035033052,-1438.3818,0.000187,2]
[350655269,1738035033061,-3891.3938,0.000187,2]
[350655271,1738035033070,-5000.0,0.000187,2]
[350655274,1738035033079,-2500.0,0.000187,2]
[350655277,1738035033089,-220.0,0.000187,2]
[350655280,1738035033098,-151.4956224,0.000187,2]
[350655283,1738035033107,-486.15,0.000187,31]
[350655286,1738035033116,-486.15,0.000187,31]
[350655289,1738035033126,-486.15,0.000187,31]
[350655292,1738035033135,-486.15,0.000187,31]
[350655295,1738035033144,-486.15,0.000187,31]
[350655298,1738035033154,-486.15,0.000187,31]
[350655300,1738035033163,-486.15,0.000187,31]
[350655303,1738035033172,-486.15,0.000187,31]
[350655306,1738035033182,-486.15,0.000187,31]
[350655309,1738035033191,-486.15,0.000187,31]
[350655312,1738035033200,-486.15,0.000187,31]
[350655315,1738035033209,-486.15,0.000187,31]
[350655318,1738035033220,-486.15,0.000187,31]
[350655321,1738035033229,-486.15,0.000187,31]
[350655324,1738035033238,-486.15,0.000187,31]
[350655326,1738035033247,-486.15,0.000187,31]
[350655329,1738035033256,-170.88783022,0.000187,2]
[350655331,1738035033266,-2000.0,0.00018751,2]
[350655333,1738035033276,-152.38526582,0.00018773,2]
[350655335,1738035033285,-500.0,0.00018773,2]
[350655337,1738035033294,-159.32702583,0.00018773,2]
[350655339,1738035033303,-160.29000953,0.00018773,2]
[350655341,1738035033312,-500.0,0.0001878,2]
[350655343,1738035033322,-25194.2467091,0.00018789,5]
[350655345,1738035033331,-420.9450761,0.00018793,2]
[350655347,1738035033341,-412.28142733,0.00018793,2]
[350655349,1738035033350,-669.8835403,0.00018793,2]
[350655351,1738035033359,-304.6890663,0.00018793,2]
[350655353,1738035033369,-381.8285892,0.00018793,2]
[350655355,1738035033379,-5274.7941065,0.00018793,2]
[350655357,1738035033388,-1355.6510261,0.00018793,2]
[350655359,1738035033398,-1396.7196412,0.00018793,2]
[350655361,1738035033407,-383.2833743,0.00018793,2]
[350655363,1738035033417,-150.0,0.00018795,2]
[350655365,1738035033426,-150.0,0.00018795,2]
[350655367,1738035033435,-150.0,0.00018795,2]
[350655369,1738035033445,-150.34334544,0.00018795,2]
[350655371,1738035033455,-318.1434901,0.00018799,2]
[350655373,1738035033464,-500.0,0.00018799,2]
[350655374,1738035033475,-500.0,0.00018799,2]
[350655376,1738035033484,-516.19,0.00018799,2]
[350655378,1738035033494,-500.0,0.00018799,2]
[350655380,1738035033503,-500.0,0.00018799,2]
[350655382,1738035033512,-500.0,0.00018799,2]
[350655384,1738035033522,-500.0,0.00018799,2]
[350655386,1738035033532,-500.0,0.00018799,2]
[350655388,1738035033542,-500.0,0.00018799,2]
[350655390,1738035033551,-500.0,0.00018799,2]
[350655392,1738035033560,-500.0,0.00018799,2]
[350655394,1738035033569,-500.0,0.00018799,2]
[350655396,1738035033578,-504.91609513,0.00018799,2]
[350655398,1738035033588,-817.0,0.000188,2]
[350655400,1738035033597,-207.07701614,0.000188,2]
[350655402,1738035033607,-329651.85748609,0.000188,2]
[350655405,1738035033620,-134216.1185912,0.000188,2]
[350655407,1738035033631,-8956.00203732,0.000188,2]
[350655409,1738035033643,-476.67512439,0.000188,2]
[350655411,1738035033654,-7433.53588711,0.000188,2]
[350655414,1738035033666,-21537.87778146,0.000188,2]
[350655416,1738035033677,-10247.6851023,0.000188,2]
[350655418,1738035033688,-1670.44580536,0.000188,2]
[350655420,1738035033699,-1000.0,0.000188,2]
[350655422,1738035033710,-1568.00595115,0.000188,2]
[350655425,1738035033722,-988.3344858,0.000188,2]
[350655427,1738035033733,-8935.63970289,0.000188,2]
[350655429,1738035033744,-654.1320935,0.000188,2]
[350655432,1738035033759,-1482.6,0.000188,2]
[350655434,1738035033770,-1319.8380045,0.000188,2]
[350655436,1738035033781,-1574.00192831,0.000188,2]
[350655439,1738035033800,-1341.93057131,0.000188,2]
[350655515,1738035038201,-1771.28400005,0.000188,2]
[350655516,1738035038259,-6457.95226594,0.000188,2]
[350655517,1738035038427,-301.825602,0.000188,2]
[350655518,1738035038438,-500.3224866,0.000188,2]
[350655519,1738035038484,-106852.77958592,0.000188,2]
[350655520,1738035038496,-363.60613795,0.000188,2]
[350655563,1738035040333,-3450.42230744,0.000188,2]
[350655564,1738035040345,-512.5945649,0.000188,2]
[350655565,1738035040604,-462.18950185,0.000188,2]
[350655566,1738035040615,-32862.19948341,0.000188,2]
[350655567,1738035040625,-888.94928195,0.000188,2]
[350655568,1738035040634,-734.0,0.000188,2]
[350655569,1738035040643,-35974.63189884,0.000188,2]
[350655570,1738035040654,-97094.56992787,0.000188,2]
[350655571,1738035040666,-31045.48805517,0.000188,2]
[350655572,1738035040721,-505.36627741,0.000188,2]
[350655573,1738035040778,-4540.28453403,0.000188,2]
[350655850,1738035043424,-1068.26625727,0.00018424,2]
[350655852,1738035043433,-36865.75805889,0.000188,2]
[350656137,1738035046388,-427.716317,0.00018693,2]
[350656155,1738035046551,-1688.275883,0.00018693,2]
[350656157,1738035046561,-657.0,0.000188,2]
[350656159,1738035046570,-398.67101606,0.000188,2]
[350656164,1738035046606,-7084.5000004,0.000188,2]
[350656166,1738035046617,-2819.79,0.000188,2]
[350656357,1738035414253,152.77,0.00010137,2]
[350656359,1738035431832,-517.0602325,0.00022,120]
[350656360,1738035964413,27625.52960364,0.00011872,2]
[350656361,1738035964705,27625.52960364,0.00011875,2]
[350656362,1738035965195,27625.52960364,0.00011884,2]
[350656363,1738035965605,27625.52960364,0.00011851,2]
[350656364,1738035965651,27625.52960364,0.00011861,2]
[350656365,1738035971902,262.2054001,0.00011918,2]
[350656366,1738035972172,262.2054001,0.00011837,2]
[350656367,1738035972460,262.2054001,0.00011862,2]
[350656368,1738035972732,262.2054001,0.00011854,2]
[350656369,1738035972993,262.2054001,0.00011842,2]
[350656370,1738035980377,200.0,0.00011901,2]
[350656371,1738035980669,200.0,0.00011867,2]
[350656372,1738035980954,200.0,0.00011897,2]
[350656373,1738035988315,200.0,0.0001187,2]
[350656374,1738035999559,200.0,0.00011879,2]
[350656375,1738036023977,110502.11841453,0.00011888,2]
[350656376,1738036024257,110502.11841453,0.00011841,2]
[350656377,1738036024557,110502.11841453,0.00011906,2]
[350656378,1738036024861,110502.11841453,0.00011884,2]
[350656379,1738036025151,110502.11841453,0.00011881,2]
[350656384,1738036031298,229.48880921,0.00011846,2]
[350656385,1738036031899,229.48880921,0.000119,2]
[350656386,1738036032789,229.48880921,0.0001185,2]
[350656388,1738036033086,229.48880921,0.00011847,2]
[350656389,1738036033365,229.48880921,0.0001187,2]
[350656419,1738036175185,1617941.42564339,0.0001188,2]
[350656575,1738036237453,-550.0,0.00013,2]
[350656576,1738036237463,-600.0,0.00015,2]
[350656577,1738036237472,-721.12,0.00015982,2]
[350656578,1738036237481,-150.0,0.00016214,2]
[350656579,1738036237490,-150.0,0.00016904,2]
[350656580,1738036237500,-650.0,0.00017,2]
[350656581,1738036237509,-250.0,0.00017253,2]
[350656582,1738036237518,-540.71,0.00017444,2]
[350656583,1738036237528,-2797.61864994,0.00017495,2]
[350656637,1738036239544,-14732.19827202,0.00017495,2]
[350656639,1738036239554,-1000.0,0.00017495,2]
[350656641,1738036239563,-150.0,0.00017561,2]
[350656643,1738036239572,-6423.97592841,0.00017562,2]
[350656646,1738036239584,-17476.02407159,0.00017562,2]
[350656648,1738036239592,-200.0,0.00017562,2]
[350656650,1738036239602,-150.0,0.00017562,2]
[350656651,1738036239611,-150.0,0.0001758,2]
[350656653,1738036239620,-508.13,0.00017594,2]
[350656655,1738036239629,-317.43,0.00017651,30]
[350656657,1738036239638,-250.0,0.00017705,2]
[350656659,1738036239648,-403.47,0.00017918,2]
[350656661,1738036239657,-36.57105117,0.00017933,2]
[350656664,1738036239669,-113.42894883,0.00017933,2]
[350656666,1738036239678,-150.0,0.00017933,2]
[350656668,1738036239687,-150.149,0.00017933,2]
[350656670,1738036239696,-1693.65282242,0.0001797,2]
[350656672,1738036239705,-3357.53204507,0.00018,4]
[350656674,1738036239715,-1007.0,0.00018,2]
[350656676,1738036239724,-437.55,0.00018078,2]
[350656678,1738036239732,-2000.0,0.00018082,2]
[350656680,1738036239741,-1867.0,0.000182,2]
[350656682,1738036239752,-1000.0,0.000182,2]
[350656684,1738036239761,-721.12,0.00018246,2]
[350656686,1738036239771,-21083.0,0.00018426,2]
[350656688,1738036239781,-2258.0,0.00018467,2]
[350656690,1738036239790,-165.0,0.00018473,2]
[350656691,1738036239799,-166.73,0.00018473,2]
[350656693,1738036239808,-8527.38799276,0.00018518,2]
[350656696,1738036239820,-15406.18725042,0.00018518,2]
[350656823,1738036242568,-150.0,0.00017933,2]
[350656824,1738036242578,-146.13443335,0.00017933,2]
[350656825,1738036242674,-3.86556665,0.00017933,2]
[350656826,1738036242684,-2385.11687914,0.00018518,2]
[350656827,1738036242693,-773.96,0.00018589,2]
[350656828,1738036242702,-773.96,0.00018589,2]
[350656829,1738036242711,-773.96,0.00018589,2]
[350656830,1738036242720,-773.96,0.00018589,2]
[350656831,1738036242729,-2356.7365,0.0001861,2]
[350656832,1738036242738,-201.0,0.0001863,2]
[350656833,1738036242747,-500.0,0.0001865,2]
[350656834,1738036242757,-2258.0,0.00018657,2]
[350656835,1738036242766,-306.1777,0.0001869,2]
[350656836,1738036242775,-1788.8824,0.0001869,2]
[350656837,1738036242784,-1000.0,0.0001869,2]
[350656838,1738036242793,-2500.0,0.0001869,2]
[350656839,1738036242803,-1362.728,0.0001869,2]
[350656840,1738036242811,-220.0,0.000187,2]
[350656841,1738036242821,-5000.0,0.000187,2]
[350656842,1738036242830,-151.49562239,0.000187,2]
[350656843,1738036242839,-1788.722,0.000187,2]
[350656844,1738036242848,-167.638,0.000187,2]
[350656845,1738036242857,-408.4,0.000187,31]
[350656846,1738036242866,-408.4,0.000187,31]
[350656847,1738036242875,-408.4,0.000187,31]
[350656848,1738036242884,-408.4,0.000187,31]
[350656849,1738036242893,-408.4,0.000187,31]
[350656850,1738036242902,-408.4,0.000187,31]
[350656851,1738036242911,-408.4,0.000187,31]
[350656852,1738036242920,-408.4,0.000187,31]
[350656853,1738036242929,-408.4,0.000187,31]
[350656854,1738036242938,-408.4,0.000187,31]
[350656855,1738036242947,-408.4,0.000187,31]
[350656856,1738036242957,-408.4,0.000187,31]
[350656857,1738036242966,-408.4,0.000187,31]
[350656858,1738036242975,-408.4,0.000187,31]
[350656859,1738036242984,-408.4,0.000187,31]
[350656860,1738036242993,-408.4,0.000187,31]
[350656861,1738036243004,-318829.85819706,0.000187,2]
[350656862,1738036243013,-1126.78541755,0.000187,2]
[350656863,1738036243022,-2000.0,0.00018751,2]
[350656864,1738036243031,-1000.0,0.0001877,2]
[350656865,1738036243040,-1000.0,0.0001877,2]
[350656867,1738036243050,-1000.0,0.0001877,2]
[350656868,1738036243059,-1000.0,0.0001877,2]
[350656869,1738036243069,-500.0,0.00018773,2]
[350656870,1738036243079,-500.0,0.00018789,2]
[350656871,1738036243088,-633.79736059,0.00018789,2]
[350656872,1738036243099,-250000.0,0.0001879,2]
[350656873,1738036243108,-151.69371315,0.0001879,2]
[350656874,1738036243118,-150.0,0.00018795,2]
[350656875,1738036243127,-151.01814972,0.00018795,2]
[350656877,1738036243136,-150.0,0.00018795,2]
[350656879,1738036243145,-500.0,0.00018799,2]
[350656881,1738036243154,-478.29325281,0.00018799,2]
[350656883,1738036243163,-508.29582213,0.00018799,2]
[350656885,1738036243173,-532.57819974,0.00018799,2]
[350656887,1738036243183,-517.09993775,0.00018799,2]
[350656888,1738036243195,-350.90676234,0.00018799,2]
[350656889,1738036243204,-500.28836376,0.00018799,2]
[350656891,1738036243213,-598.0,0.000188,2]
[350656893,1738036243223,-248.19765467,0.000188,2]
[350656895,1738036243232,-415314.49624955,0.000188,2]
[350656896,1738036243241,-444.47464098,0.000188,2]
[350656897,1738036243251,-546585.42617609,0.000188,2]
[350656898,1738036243267,-12793.16611767,0.000188,2]
[350656901,1738036245447,-500.0,0.00018789,2]
[350656902,1738036245456,-227.23385293,0.00018799,2]
[350656903,1738036245466,-298.64614707,0.000188,2]
[350656904,1738036245501,-6720.29087493,0.000188,2]
[350656905,1738036245710,-846.6670037,0.000188,2]
[350656906,1738036245764,-1688.275883,0.000188,2]
[350656908,1738036385493,26662.84406095,0.00011889,2]
[350656909,1738036385676,26662.84406095,0.00011837,2]
[350656910,1738036385975,26662.84406095,0.00011854,2]
[350656911,1738036386251,26662.84406095,0.00011917,2]
[350656912,1738036386509,26662.84406095,0.00011874,2]
[350656913,1738036392715,200.0,0.00011908,2]
[350656914,1738036400374,245.80929489,0.00011838,2]
[350656915,1738036400643,245.80929489,0.00011908,2]
[350656916,1738036400906,245.80929489,0.00011846,2]
[350656917,1738036401203,245.80929489,0.00011919,2]
[350656918,1738036401500,245.80929489,0.0001192,2]
[350656919,1738036406604,3055.90416546,0.00011864,2]
[350656920,1738036406805,3055.90416546,0.00011896,2]
[350656921,1738036407067,3055.90416546,0.00011896,2]
[350656922,1738036407411,3055.90416546,0.00011895,2]
[350656923,1738036407720,3055.90416546,0.00011918,2]
[350656924,1738036414723,246.11854786,0.00011918,2]
[350656925,1738036415020,246.11854786,0.00011917,2]
[350656926,1738036415298,246.11854786,0.00011841,2]
[350656927,1738036415590,246.11854786,0.00011846,2]
[350656928,1738036415868,246.11854786,0.00011919,2]
[350656929,1738036426189,3867.62340883,0.00011844,2]
[350656930,1738036426495,3867.62340883,0.00011858,2]
[350656931,1738036426765,3867.62340883,0.0001189,2]
[350656932,1738036427046,3867.62340883,0.00011851,2]
[350656933,1738036427305,3867.62340883,0.00011918,2]
[350656935,1738036574568,5281.63318626,0.0001192,2]
[350656936,1738036574969,5281.63318626,0.00011844,2]
[350656937,1738036575160,5281.63318626,0.00011912,2]
[350656938,1738036575460,5281.63318626,0.00011908,2]
[350656939,1738036575766,5281.63318626,0.00011902,2]
[350656941,1738036582235,638.36681373,0.00011919,2]
[350656942,1738036582594,638.36681373,0.0001185,2]
[350656943,1738036582881,638.36681373,0.00011828,2]
[350656944,1738036583195,638.36681373,0.00011894,2]
[350656946,1738036583475,638.36681373,0.0001186,2]
[350656947,1738036597571,200.0,0.00011907,2]
[350656948,1738036605335,200.0,0.00011891,2]
[350656953,1738037189864,244.83,0.00010137,2]
[350657027,1738037431686,-150.0,0.000154,2]
[350657028,1738037431696,-150.0,0.00016058,2]
[350657029,1738037431706,-150.0,0.00016581,2]
[350657030,1738037431715,-440.24890986,0.00016716,2]
[350657031,1738037431724,-649.0,0.00016716,2]
[350657032,1738037431734,-244.83,0.00016813,2]
[350657033,1738037431743,-150.0,0.0001694,2]
[350657034,1738037431754,-1287.91,0.00017109,2]
[350657035,1738037431763,-2041.86,0.00017126,2]
[350657036,1738037431773,-2751.0,0.00017163,2]
[350657037,1738037431782,-250.0,0.00017219,2]
[350657038,1738037431792,-705.49,0.00017246,2]
[350657039,1738037431801,-3906.0,0.00017347,2]
[350657040,1738037431810,-155.924,0.00017347,2]
[350657041,1738037431820,-1005.0,0.00017347,2]
[350657042,1738037431829,-1000.0,0.00017494,2]
[350657043,1738037431838,-200.0,0.00017505,2]
[350657044,1738037431847,-172.41,0.00017535,2]
[350657045,1738037431856,-300.0,0.00017549,2]
[350657046,1738037431866,-250.0,0.00017549,2]
[350657047,1738037431875,-3579.83,0.0001755,2]
[350657048,1738037431884,-504.05,0.0001755,2]
[350657049,1738037431893,-301.55,0.00017557,30]
[350657050,1738037431904,-311.68315245,0.00017932,2]
[350657051,1738037431916,-180.31684755,0.00017932,2]
[350657052,1738037431925,-150.216,0.00017933,2]
[350657053,1738037431934,-1271.0,0.00017933,2]
[350657054,1738037431942,-2020.0,0.00017933,2]
[350657055,1738037431951,-570.748,0.00017933,2]
[350657056,1738037431960,-152.02,0.00017933,2]
[350657057,1738037431969,-639.285,0.00017933,2]
[350657058,1738037431978,-1872.13,0.00017933,2]
[350657059,1738037431987,-921.741,0.00017933,2]
[350657060,1738037431996,-783.0,0.00017933,2]
[350657061,1738037432005,-2981.763,0.00017933,2]
[350657062,1738037432014,-1265.439,0.00017933,2]
[350657063,1738037432023,-153.135,0.00017933,2]
[350657064,1738037432032,-540.193,0.00017933,2]
[350657065,1738037432041,-400.0,0.0001797,2]
[350657066,1738037432050,-2000.0,0.00018082,2]
[350657067,1738037432059,-428.69718511,0.00018386,2]
[350657068,1738037432068,-1422.8008,0.00018412,2]
[350657069,1738037432077,-52989.57416076,0.00018414,2]
[350657070,1738037432086,-17967.91236997,0.00018418,2]
[350657071,1738037432097,-4200.0,0.00018418,2]
[350657072,1738037432108,-355.79999989,0.00018418,2]
[350657073,1738037432127,-27897.88303619,0.00018418,2]
[350657074,1738037432136,-1127.3135,0.0001844,2]
[350657075,1738037432145,-40726.72420586,0.00018446,2]
[350657076,1738037432159,-2185.53507333,0.00018446,2]
[350657077,1738037432170,-2235.54614608,0.00018446,2]
[350657078,1738037432181,-7841.76873548,0.00018446,2]
[350657079,1738037432190,-106599.55807648,0.00018449,2]
[350657080,1738037432199,-182.67310181,0.00018449,2]
[350657081,1738037432208,-253.15014594,0.00018449,2]
[350657082,1738037432217,-50421.59540597,0.00018449,2]
[350657083,1738037432225,-2204.0,0.00018467,2]
[350657084,1738037432234,-52989.57416075,0.00018478,2]
[350657085,1738037432243,-324363.521046,0.0001848,2]
[350657086,1738037432253,-50421.59540597,0.00018481,2]
[350657087,1738037432262,-5000.0,0.000185,3]
[350657088,1738037432271,-52989.57416075,0.00018509,2]
[350657089,1738037432280,-50421.59540597,0.00018512,2]
[350657091,1738037432289,-304.07302117,0.00018514,2]
[350657093,1738037432298,-16693.51994407,0.00018518,2]
[350657095,1738037432310,-278.06409137,0.00018518,2]
[350657161,1738037437671,-239.49192706,0.00018349,2]
[350657162,1738037437681,-744.32873618,0.00018443,2]
[350657163,1738037437690,-32.63754736,0.00018518,2]
[350657164,1738037437701,-1536.27015992,0.00018518,2]
[350657165,1738037437712,-864.14244769,0.00018518,2]
[350657166,1738037437775,-500.0,0.00018518,2]
[350657167,1738037437882,-544.32727247,0.00018518,2]
[350657168,1738037437937,-274.50242182,0.00018518,2]
[350657289,1738037439850,-1107.0,0.00017347,2]
[350657291,1738037439859,-393.47,0.0001849,2]
[350657293,1738037439870,-350.85873618,0.0001849,2]
[350657295,1738037439879,-1977.07126382,0.00018518,2]
[350657297,1738037439891,-1421.16694505,0.00018518,2]
[350657304,1738037439945,-895.00445074,0.00018518,2]
[350657311,1738037440000,-30000.00055985,0.00018518,2]
[350657317,1738037440054,-717.70335969,0.00018518,2]
[350657324,1738037440108,-1100.817,0.00018518,2]
[350657358,1738037442683,-4208.19490955,0.00018518,2]
[350657359,1738037442695,-4200.04995,0.00018518,2]
[350657360,1738037442707,-296.21242944,0.00018518,2]
[350657361,1738037442843,-826.63609716,0.00018518,2]
[350657362,1738037442896,-452.1720929,0.00018518,2]
[350657363,1738037442951,-645.12,0.00018518,2]
[350657480,1738037445732,-468.22967808,0.00018518,2]
[350657481,1738037445743,-1795.91815454,0.00018518,2]
[350657482,1738037445787,-1109.97733375,0.00018518,2]
[350657483,1738037445798,-6440.89779035,0.00018518,2]
[350657484,1738037445809,-715.194902,0.00018518,2]
[350657485,1738037445843,-1008.34431669,0.00018518,2]
[350657486,1738037446176,-52868.75123294,0.00018518,2]
[350657487,1738037446185,-5000.0,0.00018518,2]
[350657488,1738037446194,-150.0,0.00018523,2]
[350657489,1738037446204,-150.0,0.00018524,2]
[350657490,1738037446213,-150.0,0.00018526,2]
[350657491,1738037446223,-150.0,0.00018527,2]
[350657492,1738037446232,-150.0,0.00018533,2]
[350657493,1738037446242,-1000.0,0.00018536,2]
[350657494,1738037446251,-744.32873618,0.00018537,2]
[350657495,1738037446263,-150.0,0.00018538,2]
[350657496,1738037446273,-150.0,0.00018538,2]
[350657497,1738037446283,-1742.417,0.00018539,2]
[350657498,1738037446292,-52989.57416075,0.00018541,2]
[350657499,1738037446302,-50421.59540597,0.00018543,2]
[350657500,1738037446311,-150.0,0.00018545,2]
[350657501,1738037446321,-150.0,0.00018548,2]
[350657502,1738037446331,-150.0,0.00018553,2]
[350657503,1738037446340,-150.0,0.00018553,2]
[350657504,1738037446349,-150.0,0.00018554,2]
[350657505,1738037446359,-150.0,0.00018556,2]
[350657506,1738037446368,-150.0,0.00018558,2]
[350657507,1738037446377,-150.0,0.0001856,2]
[350657508,1738037446387,-150.0,0.00018561,2]
[350657509,1738037446397,-1000.0,0.00018562,2]
[350657510,1738037446406,-150.0,0.00018567,2]
[350657511,1738037446416,-52989.57416075,0.00018573,2]
[350657512,1738037446425,-50421.59540597,0.00018575,2]
[350657513,1738037446434,-150.0,0.00018577,2]
[350657514,1738037446444,-150.0,0.00018579,2]
[350657515,1738037446454,-6539.77516566,0.0001858,2]
[350657516,1738037446463,-1000.0,0.00018583,2]
[350657517,1738037446472,-150.0,0.00018586,2]
[350657518,1738037446481,-150.0,0.00018589,2]
[350657519,1738037446490,-150.0,0.00018592,2]
[350657520,1738037446499,-150.0,0.00018592,2]
[350657521,1738037446510,-1000.0,0.00018593,2]
[350657522,1738037446521,-150.0,0.00018593,2]
[350657523,1738037446532,-150.0,0.00018594,2]
[350657524,1738037446542,-150.0,0.00018595,2]
[350657525,1738037446551,-150.0,0.00018595,2]
[350657526,1738037446561,-4184.35420078,0.000186,2]
[350657527,1738037446571,-151.49562239,0.000186,2]
[350657528,1738037446580,-5000.0,0.000186,3]
[350657529,1738037446589,-150.0,0.00018601,2]
[350657530,1738037446599,-150.0,0.00018602,2]
[350657531,1738037446608,-52989.57416075,0.00018605,2]
[350657532,1738037446619,-50421.59540597,0.00018606,2]
[350657533,1738037446629,-2963.94709,0.0001861,2]
[350657534,1738037446638,-150.0,0.00018611,2]
[350657535,1738037446648,-150.0,0.00018613,2]
[350657536,1738037446658,-150.0,0.00018614,2]
[350657537,1738037446668,-150.0,0.00018614,2]